Cogmind - Beta 11 @@@ ROGUE MODE // 2022.03.23 @ 07:49:32 Player: Laraso Result: Self-destructed Performance ------------- Evolutions (2) 1000 Regions Visited (4) 800 Robots Destroyed (46) 230 Value Destroyed (1180) 1180 Prototype IDs (1) 20 Alien Tech Used (0) 0 Bonus (526) 526 TOTAL SCORE: 3756 Bonus ------- Pacifist 200 High Alert Combat Kills 126 Entered Garrisons 200 Cogmind --------- Core Integrity 420/550 Matter 410/450 Energy 100/100 System Corruption 0% Temperature Warm (107) Movement Treading (160) Location -8/Garrison Parts ------- > --- POWER (1) -------- (None) > --- PROPULSION (4) --- Light Treads Light Treads > --- UTILITY (4) ------ Large Storage Unit Compact Matter Pod > --- WEAPON (2) ------- Assault Cannon Assault Cannon > --- INVENTORY (15) --- Ion Engine Ion Engine Light Nuclear Core Large Storage Unit Improved Sensor Array Flak Gun Flak Gun Flak Gun Assault Cannon Grenade Launcher Heavy Flail Peak State ------------ > --- POWER ------------ Ion Engine > --- PROPULSION ------- Light Treads Light Treads Light Treads Light Treads > --- UTILITY ---------- Large Storage Unit Compact Matter Pod Heavy Armor Plating > --- WEAPON ----------- Flak Gun Advanced EMP Blaster > --- INVENTORY -------- Ion Engine Ion Engine Large Storage Unit Improved Sensor Array Flak Gun Flak Gun Flak Gun Assault Cannon Assault Cannon Assault Cannon Grenade Launcher Heavy Flail [Rating: 26] Favorites ----------- Power Ion Engine Engine Ion Engine Propulsion Light Treads Treads Light Treads Utility Large Storage Unit Device Improved Sensor Array Storage Large Storage Unit Protection Heavy Armor Plating Weapon Advanced EMP Blaster Ballistic Gun Flak Gun Ballistic Cannon Assault Cannon Launcher Advanced EMP Blaster Build | -11 -10 -9 -8 -8 ------- Run | Scr Mat Mat Mat Gar Slots Evolved 4 | . . 2 2 . Power . | . . . . . Propulsion 2 | . . . 2 . Utility 2 | . . 2 . . Weapon . | . . . . . Parts Attached 32 | 8 4 6 9 5 Power 3 | 3 . . . . Engine 3 | 3 . . . . Core . | . . . . . Reactor . | . . . . . Propulsion 6 | 2 . . 3 1 Treads 6 | 2 . . 3 1 Leg . | . . . . . Wheel . | . . . . . Hover . | . . . . . Flight . | . . . . . Utility 9 | 1 2 3 3 . Device 1 | . . . 1 . Storage 5 | 1 1 2 1 . Processor . | . . . . . Hackware . | . . . . . Protection 3 | . 1 1 1 . Artifact . | . . . . . Weapon 14 | 2 2 3 3 4 Energy Gun . | . . . . . Energy Cannon . | . . . . . Ballistic Gun 9 | 2 2 2 1 2 Ballistic Cannon 3 | . . . 1 2 Launcher 2 | . . 1 1 . Special Weapon . | . . . . . Impact Weapon . | . . . . . Slashing Weapon . | . . . . . Piercing Weapon . | . . . . . Special Melee Weapon . | . . . . . Unidentified Prototypes 1 | . . . 1 . Parts Lost 9 | . . 1 2 6 Power 1 | . . . . 1 Propulsion 4 | . . . 1 3 Utility 3 | . . 1 1 1 Weapon 1 | . . . . 1 Highest Loss Streak 3 | . . 1 1 3 To Critical Strikes . | . . . . . Average Slot Usage (%) 82 | . 89 80 80 85 Engine 10 | . 14 11 9 9 Treads 29 | . 28 22 32 33 Storage 14 | . 16 12 13 18 Protection 7 | . 4 13 5 7 Ballistic Gun 10 | . 25 14 7 . Ballistic Cannon 2 | . . . 1 9 Launcher 6 | . . 7 9 7 Naked Turns . | . . . . . Heaviest Build 64 | 14 26 64 52 52 Greatest Support 80 | 40 40 40 80 80 Greatest Overweight (x) 1 | . . 1 . . Average Overweight (x) . | . . . . . Largest Inventory Capacity 15 | 8 10 15 15 15 Average Capacity 12 | 7 9 10 15 15 Most Carried 12 | 3 7 10 12 12 Average Carried 8 | . 3 7 9 11 Final Capacity 15 | 8 10 15 15 15 Final Carried 12 | 1 5 10 12 11 Class Distribution -------------------- 100% | Mutant Dominant Class ---------------- Mutant | -10/Materials Mutant | -9/Materials Mutant | -8/Materials Mutant | -8/Garrison Resources | -11 -10 -9 -8 -8 ----------- Run | Scr Mat Mat Mat Gar Matter Collected 1240 | 251 . 295 322 372 Remotely . | . . . . . Salvage Created 1121 | . . 301 523 297 Parts 70 | . . 23 38 9 Haulers Intercepted . | . . . . . Recyclers Shooed 1 | . . 1 . . Parts Field Recycled . | . . . . . Retrieved Matter . | . . . . . Parts Self-Destructed . | . . . . . Prevented . | . . . . . Kills | -11 -10 -9 -8 -8 ------- Run | Scr Mat Mat Mat Gar Combat Hostiles Destroyed 37 | . . 6 21 10 Guns 12 | . . 4 5 3 Cannons 9 | . . . 2 7 AOE 16 | . . 2 14 . Classes Destroyed 9 | . . 4 4 1 Worker 2 | . . . 2 . Builder 3 | . . 3 . . Recycler 1 | . . . 1 . Watcher 3 | . . . 3 . Swarmer 17 | . . . 17 . Grunt 13 | . . 4 2 7 Brawler 1 | . . 1 . . Duelist 2 | . . . . 2 Sentry 4 | . . 1 2 1 Best Kill Streak 12 | . . 5 12 3 Combat Bots Only 8 | . . 3 8 3 Max Kills in Single Turn 7 | . . 1 7 1 Gunslinging . | . . . . . Exploded 4 | . . 1 4 . Melee . | . . . . . Uniques/NPCs Destroyed . | . . . . . Combat | -11 -10 -9 -8 -8 -------- Run | Scr Mat Mat Mat Gar Damage Taken 1831 | . . 362 531 938 Core 158 | . . 28 17 113 Absorbed by Shields . | . . . . . Redirected to Shielding 21 | . . 21 . . Core Remaining (%) 97 | 100 100 93 . . Volleys Fired 106 | . 3 28 33 42 Largest 2 | . 2 2 2 2 Hottest 88 | . 46 46 58 88 Shots Fired 132 | . 6 38 35 53 Gun 68 | . 6 35 15 12 Cannon 50 | . . . 9 41 Launcher 14 | . . 3 11 . Special . | . . . . . Kinetic 118 | . 6 35 24 53 Thermal . | . . . . . Explosive 6 | . . 3 3 . Electromagnetic 8 | . . . 8 . Robot Hit Streak 10 | . 1 10 8 7 Robot Miss Streak 7 | . 7 3 7 2 Penetration Max . | . . . . . Secondary Targets . | . . . . . Shots Hit Robots 86 | . 3 26 21 36 Core Hits 91 | . 1 16 43 31 Critical Kills . | . . . . . Critical Parts Destroyed . | . . . . . Critical Strikes 2 | . . . . 2 Blast 2 | . . . . 2 Melee Attacks . | . . . . . Impact . | . . . . . Slashing . | . . . . . Piercing . | . . . . . Sneak Attacks . | . . . . . Combat Hostiles . | . . . . . Follow-up Attacks . | . . . . . Damage Inflicted 3310 | . 41 663 1624 982 Guns 957 | . 41 440 200 276 Cannons 907 | . . . 201 706 Explosions 1446 | . . 223 1223 . Melee . | . . . . . Ramming . | . . . . . Kinetic 1864 | . 41 440 401 982 Thermal 62 | . . . 62 . Explosive 866 | . . 223 643 . Electromagnetic 518 | . . . 518 . Impact . | . . . . . Slashing . | . . . . . Piercing . | . . . . . Highest Corruption 2 | . 2 . . . Average Corruption 2 | . 2 . . . Corruption Purged . | . . . . . Corruption Blocked . | . . . . . Effects 1 | . 1 . . . Matter Fused 1 | . 1 . . . Overload Shots . | . . . . . Overflow Damage 41 | . . . 21 20 Projectiles 20 | . . . . 20 Explosions 21 | . . . 21 . Melee . | . . . . . Knockbacks 7 | . . . 4 3 Impact . | . . . . . Kinetic 7 | . . . 4 3 Secondary . | . . . . . Self-Inflicted Damage 29 | . . . 29 . Shots 2 | . . . 2 . Rammed . | . . . . . Targets Rammed . | . . . . . Kicked . | . . . . . Crushed . | . . . . . Highest Temperature 234 | . . 16 29 234 Average Temperature 71 | . . 5 15 95 Received Heat Transfer 792 | . . 180 72 540 Siege Activations . | . . . . . Robots Corrupted . | . . . . . Combat Hostiles . | . . . . . Parts Fried 3 | . . . 3 . Impact Corruptions . | . . . . . Robots Melted . | . . . . . Combat Hostiles . | . . . . . Parts Melted . | . . . . . Heat Transferred 150 | . . . 150 . Parts Sabotaged . | . . . . . Parts Stolen . | . . . . . Parts Stripped . | . . . . . Power Chain Reactions 2 | . . . 2 . Missiles Intercepted . | . . . . . Alert | -11 -10 -9 -8 -8 ------- Run | Scr Mat Mat Mat Gar Peak Influence 656 | . 31 204 595 656 Initial 386 | . . 13 85 386 Average 232 | . 4 127 264 522 Maximum Alert Level 2 | . . 1 2 2 Low Security (%) 47 | 100 100 70 31 . Level 1 24 | . . 29 43 6 Level 2 28 | . . . 25 93 Level 3 . | . . . . . Level 4 . | . . . . . Level 5 . | . . . . . High Security . | . . . . . Max Security . | . . . . . Squads Dispatched 1 | . . . 1 . Investigation . | . . . . . Extermination . | . . . . . Reinforcement . | . . . . . Assault . | . . . . . Garrison 1 | . . . 1 . Intercept . | . . . . . Searches Triggered . | . . . . . Construction Impeded . | . . . . . Haulers Reinforced . | . . . . . Active Scanning Responses . | . . . . . Cargo Convoy Interrupts . | . . . . . Stealth | -11 -10 -9 -8 -8 --------- Run | Scr Mat Mat Mat Gar Distress Signals 2 | . . . 2 . Communications Jammed . | . . . . . Distress Signals . | . . . . . Times Spotted 47 | . 2 9 23 13 Peak Tracking Total 6 | . 2 4 6 4 Tactical Retreats 1 | . . . 1 . Traps | -11 -10 -9 -8 -8 ------- Run | Scr Mat Mat Mat Gar Traps Triggered 2 | . 1 . 1 . Indirectly . | . . . . . Trap Hack Attempts . | . . . . . Triggered . | . . . . . Disarmed . | . . . . . Reprogrammed . | . . . . . Reused . | . . . . . Traps Extracted . | . . . . . Installed . | . . . . . Triggered . | . . . . . Machines | -11 -10 -9 -8 -8 ---------- Run | Scr Mat Mat Mat Gar Machines Disabled 3 | . . . 3 . Max in Single Turn 2 | . . . 2 . Machines Sabotaged . | . . . . . Garrisons Compromised . | . . . . . Overloaded Fab Kills . | . . . . . Hacking | -11 -10 -9 -8 -8 --------- Run | Scr Mat Mat Mat Gar Machines Accessed 2 | . 1 . 1 . Terminals . | . . . . . Fabricators . | . . . . . Repair Stations . | . . . . . Recycling Units 1 | . 1 . . . Scanalyzers . | . . . . . Garrison Access 1 | . . . 1 . Total Hacks 3 | . 1 . 2 . Successful 2 | . 1 . 1 . Failed 1 | . . . 1 . Catastrophic . | . . . . . Database Lockouts . | . . . . . Manual . | . . . . . Terminals . | . . . . . Fabricators . | . . . . . Repair Stations . | . . . . . Recycling Units 1 | . 1 . . . Scanalyzers . | . . . . . Garrison Access 2 | . . . 2 . Terminal Hacks . | . . . . . Fabricator Hacks . | . . . . . Repair Station Hacks . | . . . . . Recycling Unit Hacks 1 | . 1 . . . Recycle Component 1 | . 1 . . . Scanalyzer . | . . . . . Garrison Access Hacks 1 | . . . 1 . Unlock Access 1 | . . . 1 . Unauthorized Hacks . | . . . . . Terminals . | . . . . . Fabricators . | . . . . . Repair Stations . | . . . . . Recycling Units . | . . . . . Scanalyzers . | . . . . . Garrison Access . | . . . . . Data Cores Recovered . | . . . . . Used . | . . . . . Hacking Detections . | . . . . . Full Trace Events . | . . . . . Feedback Events . | . . . . . Feedback Blocked . | . . . . . Robot Schematics Acquired . | . . . . . Robots Built . | . . . . . Authchips . | . . . . . Time . | . . . . . Total Robot Build Rating . | . . . . . Part Schematics Acquired . | . . . . . Parts Built . | . . . . . Authchips . | . . . . . Time . | . . . . . Total Part Build Rating . | . . . . . Parts Repaired . | . . . . . Time . | . . . . . Parts Recycled 1 | . 1 . . . Recycled Matter . | . . . . . Retrieved Matter . | . . . . . Retrieved Components . | . . . . . Parts Scanalyzed . | . . . . . Part Schematics Acquired . | . . . . . Parts Damaged . | . . . . . Bothacking | -11 -10 -9 -8 -8 ------------ Run | Scr Mat Mat Mat Gar Used RIF Installer . | . . . . . Robots Hacked . | . . . . . Non-combat . | . . . . . Combat . | . . . . . Robot Hacks Applied . | . . . . . Relay Couplers Released . | . . . . . Fabnet Peak Effective % . | . . . . . Robots Rewired . | . . . . . Allies Hacked . | . . . . . Hacks Repelled . | . . . . . Allies | -11 -10 -9 -8 -8 -------- Run | Scr Mat Mat Mat Gar Total Allies . | . . . . . Largest Group . | . . . . . Highest-Rated Group . | . . . . . Highest-Rated Ally . | . . . . . Total Orders . | . . . . . Ally Attacks . | . . . . . Total Damage . | . . . . . Kills . | . . . . . Allies Corrupted . | . . . . . Allies Melted . | . . . . . Intel | -11 -10 -9 -8 -8 ------- Run | Scr Mat Mat Mat Gar Robot Analysis Total . | . . . . . Derelict Logs Recovered . | . . . . . Drone Launches . | . . . . . Drone Recoveries . | . . . . . Exploration | -11 -10 -9 -8 -8 ------------- Run | Scr Mat Mat Mat Gar Turns Passed 1621 | 124 221 304 663 309 Spaces Moved 768 | 67 120 123 329 129 Core 5 | 5 . . . . Treads 763 | 62 120 123 329 129 Legs . | . . . . . Wheels . | . . . . . Hover . | . . . . . Flight . | . . . . . Fastest Speed 50 | 50 160 160 160 160 Average Speed 159 | 151 160 162 160 160 Slowest Speed 240 | 160 160 240 160 160 Overloaded Moves . | . . . . . Propulsion Burnouts . | . . . . . Robots Hopped . | . . . . . Cave-ins Triggered . | . . . . . Exploration Rate (%) 20 | 5 22 12 35 29 Regions Visited 4 Branch Regions . Pre-discovered Areas . | . . . . . Known Exits Taken 1 | . . . 1 . Unknown Exits Taken 3 | 1 1 1 . . Scrap Searched . | . . . . . Spaces Dug 5 | . . . 5 . Terrain Destroyed 51 | . . 12 39 . Melee . | . . . . . Projectile 1 | . . . 1 . AOE 50 | . . 12 38 . Terrain Rammed . | . . . . . Walls Destroyed . | . . . . . Machines Disabled . | . . . . . Actions | -11 -10 -9 -8 -8 --------- Run | Scr Mat Mat Mat Gar Total 1045 | 89 145 197 435 179 Wait 75 | 7 8 19 41 . Move 764 | 66 119 122 328 129 Hop . | . . . . . Pick Up 38 | 7 7 12 11 1 Fast Attach 6 | . . . 5 1 Attach 25 | 7 4 6 4 4 Detach 14 | 1 3 4 4 2 Swap 1 | 1 . . . . Drop 16 | . 1 6 9 . Fire 106 | . 3 28 33 42 Melee . | . . . . . Ram . | . . . . . Kick . | . . . . . Crush . | . . . . . Escape Stasis . | . . . . . Rewire . | . . . . . Trap . | . . . . . Miscellaneous . | . . . . . Route ------- -11/Scrapyard -10/Materials -9/Materials -8/Materials -8/Garrison History --------- Turn | Location | Event 8 | -11/Scrapyard | Discovered new exit (range 16) 125 | -11/Scrapyard | Entered Materials 318 | -10/Materials | Build established: Mutant 331 | -10/Materials | Discovered new exit (range 10) 346 | -10/Materials | Entered another Materials area 346 | -9/Materials | Evolved 2 slots: Utility x2 608 | -9/Materials | Discovered new exit (range 12) 650 | -9/Materials | Entered another Materials area 650 | -8/Materials | Evolved 2 slots: Propulsion x2 1237 | -8/Materials | Garrison activated, responded to threat 1285 | -8/Materials | Destroyed 8 combat bots 1312 | -8/Materials | Identified exit to Garrison 1313 | -8/Materials | Entered Garrison 1390 | -8/Garrison | Triggered checkpoint 1562 | -8/Garrison | Triggered checkpoint 1612 | -8/Garrison | Triggered checkpoint 1612 | -8/Garrison | Lost 3 parts (1n1u1w) 1622 | -8/Garrison | Self-destructed Last Messages --------------- 01575_ Critical hit (Burn: +37). 01579_ G-47 Trooper destroyed. 01581_ Lgt. Treads destroyed. 01585_ G-47 Trooper destroyed. 01593_ Acquired 3 matter. 01594_ Acquired 5 matter. 01596_ Acquired 2 matter. 01597_ Acquired 8 matter. 01599_ Acquired 2 matter. 01601_ Acquired 3 matter. 01602_ Acquired 45 matter. 01605_ Acquired 4 matter. 01612_ Beams of light sweep through the air. An alarm sounds. 01613_ G-47 Trooper knocked back. 01613_ G-47 Trooper suffers critical hit (Blast). 01613_ G-47 Trooper destroyed. 01617_ Lgt. Treads destroyed. 01617_ Critical hit (Burn: +37). 01619_ L-31 Rogue destroyed. 01620_ Ion Engine destroyed. Map ----- +----------------------------------------------------+ | ?????????????????????????????????????????????????? | | ?????????????????????????????????????????????????? | | ?????????????????????????????????????????????????? | | ?????????????????????????????????????????????????? | | ?????????????????????????????????????????????????? | | ?????????????????????????????????????????????????? | | ?????????????? ?????????????????????????????????? | | ?????????????# ?????????????????????????????????? | | ?????????????# ?????????????????????????????????? | | ?????????????# #??????? #??????????????????????? | | ?????????????# #??????? #??????????????????????? | | ?????????????# #??????? #??????????????????????? | | ????????????## ##""""## ##?????????????????????? | | ????????????# ####??????????????????? | | ????????????# ???????????????????? | | ????????????# ????????????????????? | | ????????????# ## ##% #?????????????????????? | | ????????????# ## ## gg###???????????????????? | | ????????????" #???????????????????? | | ????????????" %#???????????????????? | | ????????????" g ????????????????????? | | ????????????" [%%?????????????????????? | | ????????????# ## ## !#?????????????????????? | | ??########### ## ## %##########????????????? | | ??# #????????????? | | ??# @ #????????????? | | ??# ######## ####### #????????????? | | ??# #??????###### [ ## ##?????????????????????? | | ??# #???????????# ## #??????????????????????? | | ??# #???????????####### #??????????????????????? | | ### #?????????????????# #??????????????????????? | | [ #?????????????????# #??????????????????????? | | !! #?????????????????# #??????????????????????? | | ## ###?????????????????# #??????????????????????? | | ?# #???????????????????# #??????????????????????? | | ?# #???????????????????# ??????????????????????? | | ?#^#???????????????????# ??????????????????????? | | ?#"#???#???????????????# ##??????????????????????? | | ?# #??? ???????????????? ????????????????????????? | | ?# #??# #??????????????? ????????????????????????? | | ?# #??# #??????????????? ????????????????????????? | | ?# #??# #????????????????????????????????????????? | | ?# #??# #????????????????????????????????????????? | | ?# #??# #????????????????????????????????????????? | | ?# #??=%#???#######??????????????????????????????? | | ?# #??#%#???#"""""#??????????????????????????????? | | ?#=####+###### #???????????????????????????????? | | ?# = #???????????????????????????????? | | ?####### #######???????????????????????????????? | | ???????# #?????????????????????????????????????? | +----------------------------------------------------+ Best States ------------- Heat Dissipation 31 Energy Generation 10 Energy Capacity 250 Matter Stores 433 Matter Capacity 450 Sight Range 16 Robot Scan Range 15 Terrain Scan Density 10 Armor Coverage 600 Weapon Shielding 33 Evasion (%) 40 Recoil Reduction 4 Item Schematics ----------------- None Robot Schematics ------------------ None Fabricated ------------ Nothing Alien Tech Used ----------------- None Achievements -------------- Troublemaker Challenges ------------ None Game ------ Seed LayeredImpactMegatreads Manual? 0 Play Time 00:16:30 Cumulative 12.2 hours Start 2022.03.22 @ 10:13:14 End 2022.03.23 @ 07:49:32 Sessions 5 Manual Loads 0 Difficulty Rogue Special Mode None Game No. 20 Rogue 19 Adventurer 1 Explorer 0 Win Type - Total 0 Types 0/0/0/0/0/0/0/0/0 Lore% 11 Gallery% 19 Achievement% 12 Wizard Run 0 Options --------- ASCII 0 Keyboard 1 Movement Numpad Keybinds 0 Fullscreen 1 Font 24/Smallcaps Map View 76x50 Tactical HUD 1 Map Filters NONE Filters NONE Steam 1 RUN: d38956a3-4522-49a1-a94c-16bce09fdf81